bitfinex/quotes_ETHUSD_20251126
["timestamp","ask_amount","ask_price","bid_price","bid_amount"]
[1764182953521,0.9159,3027.2,3027.1,3.30349179]
[1764182953728,0.9159,3027.2,3026.5,3.3041467]
[1764182954022,0.4589,3027.1,3026.6,0.93659411]
[1764182954239,0.4589,3027.1,3026.8,0.72559411]
[1764182954651,0.6635,3026.9,3026.8,0.72559411]
[1764182955014,1.1498,3026.9,3026.8,0.72559411]
[1764182955214,1.1498,3026.9,3026.6,11.31079211]
[1764182955415,1.1498,3026.9,3026.8,3.30381921]
[1764182959769,0.002,3027.2,3026.9,7.964494]
[1764182960066,0.002,3027.2,3026.9,3.019104]
[1764182960440,0.4883,3027.2,3026.9,3.019104]
[1764182961564,0.476,3027.0,3026.9,3.019104]
[1764182961966,0.9623,3027.0,3026.9,6.32281406]
[1764182963173,0.9623,3027.0,3026.9,3.51471006]
[1764182964965,0.9623,3027.0,3026.9,0.211]
[1764182965165,0.9623,3027.0,3026.9,3.51471006]
[1764182969861,0.002,3027.2,3026.9,7.50027225]
[1764182970065,0.4883,3027.2,3026.9,6.81842012]
[1764182970382,0.002,3027.2,3027.1,7.344069]
[1764182970672,0.9643,3027.2,3027.1,5.577759]
[1764182970880,0.478,3027.2,3027.1,5.577759]
[1764182971079,0.9643,3027.2,3027.1,5.577759]
[1764182971258,0.478,3027.2,3027.1,6.88993632]
[1764182971862,0.478,3027.2,3027.1,7.61553043]
[1764182973159,0.002,3027.2,3027.1,35.46856322]
[1764182973365,0.002,3027.2,3027.1,27.36279622]
[1764182973558,0.002,3027.2,3027.1,27.76830022]
[1764182973760,0.002,3027.2,3027.1,27.89560022]
[1764182974059,0.002,3027.2,3027.1,27.76830022]
[1764182974386,0.002,3027.2,3027.1,36.00136722]
[1764182975503,0.002,3027.2,3027.1,32.72385522]
[1764182976377,0.002,3027.2,3027.1,36.00136722]
[1764182976585,0.002,3027.2,3027.1,31.50603322]
[1764182977262,0.002,3027.2,3027.1,6.21236722]
[1764182977468,0.002,3027.2,3027.1,31.74578122]
[1764182978387,0.002,3027.2,3027.1,32.96280122]
[1764182979501,0.478,3027.2,3027.1,8.26476822]
[1764182979860,0.002,3027.2,3027.1,8.39206822]
[1764182980385,0.002,3027.2,3027.1,36.26236722]
[1764182981084,0.002,3027.2,3027.1,24.13852022]
[1764182981258,0.002,3027.2,3027.1,24.17222022]
[1764182981458,0.002,3027.2,3027.1,18.19853222]
[1764182981660,0.002,3027.2,3027.1,18.32583222]
[1764182981891,0.002,3027.2,3027.1,18.19853222]
[1764182982586,0.002,3027.2,3027.1,27.52751822]
[1764182983484,0.002,3027.2,3027.1,36.13506722]
[1764182983684,0.002,3027.2,3027.1,32.70074622]
[1764182983884,0.002,3027.2,3027.1,30.19697122]
[1764182984278,0.002,3027.2,3027.1,30.32427122]
[1764182984471,0.002,3027.2,3027.1,36.26236722]
[1764182984865,0.002,3027.2,3027.1,35.72377722]
[1764182985061,0.002,3027.2,3027.1,34.81577722]
[1764182985488,0.002,3027.2,3027.1,36.26236722]
[1764182986592,0.002,3027.2,3027.1,29.08731122]
[1764182986802,0.4701,3027.2,3027.1,13.21798622]
[1764182986967,0.002,3027.2,3027.1,13.55628622]
[1764182987568,0.002,3027.2,3027.1,24.86894122]
[1764182987765,0.002,3027.2,3027.1,23.25309322]
[1764182987989,0.002,3027.2,3027.1,21.12235922]
[1764182988188,0.002,3027.2,3027.1,21.33335922]
[1764182988601,0.002,3027.2,3027.1,24.07965422]
[1764182989066,0.002,3027.2,3027.1,23.12649722]
[1764182989263,0.002,3027.2,3027.1,23.25379722]
[1764182989603,0.002,3027.2,3027.1,29.72783922]
[1764182989809,0.002,3027.2,3027.1,29.39755422]
[1764182990612,1e-08,3027.6,3027.5,30.582804]
[1764182990776,1e-08,3027.6,3027.5,40.33833107]
[1764182991594,1e-08,3027.6,3027.5,43.64138639]
[1764182992792,0.002,3027.9,3027.8,0.405504]
[1764182992996,0.002,3027.9,3027.8,23.64088811]
[1764182993200,0.002,3027.9,3027.8,24.27863792]
[1764182993568,0.002,3027.9,3027.8,27.58136597]
[1764182993782,0.002,3027.9,3027.8,36.97521497]
[1764182994434,0.002,3027.9,3027.8,21.84123197]
[1764182994705,0.002,3027.9,3027.8,30.31589719]
[1764182995028,0.6685,3027.9,3027.8,21.12400997]
[1764182995304,0.6685,3027.9,3027.8,9.23094497]
[1764182995472,0.6685,3027.9,3027.8,6.86685616]
[1764182995671,0.6685,3027.9,3027.8,19.57035316]
[1764182995912,0.6685,3027.9,3027.8,19.31035316]
[1764182996476,0.4701,3027.9,3027.8,19.31035316]
[1764182996672,0.4701,3027.9,3027.8,4.23932216]
[1764182996977,0.4701,3027.9,3027.8,27.58012966]
[1764182997609,0.002,3027.9,3027.8,28.11293366]
[1764182997913,0.002,3027.9,3027.8,24.28404766]
[1764182998820,0.002,3027.9,3027.8,30.21122566]
[1764182999110,0.002,3027.9,3027.8,29.48222366]
[1764182999313,0.002,3027.9,3027.8,29.53222366]
[1764182999618,0.002,3027.9,3027.8,29.65952366]
[1764182999912,0.002,3027.9,3027.8,35.75492666]
[1764183000114,0.002,3027.9,3027.8,35.01692666]
[1764183000311,0.002,3027.9,3027.8,30.91582966]
[1764183000479,0.002,3027.9,3027.8,26.39072966]
[1764183000780,0.4701,3027.9,3027.8,22.89184266]
[1764183000974,0.4701,3027.9,3027.8,23.10284266]
[1764183001189,0.4701,3027.9,3027.8,22.71435866]
[1764183001372,1.1482,3027.9,3027.8,9.35306816]
[1764183001577,1.1482,3027.9,3027.8,4.23932216]
[1764183001794,1.1482,3027.9,3027.8,6.55182416]
[1764183002004,1.1482,3027.9,3027.8,6.76712905]
[1764183002235,1.1482,3027.9,3027.8,3.30272805]
[1764183002506,1.1482,3027.9,3027.8,3.51372805]
[1764183002705,1.1482,3027.9,3027.8,4.23932216]
[1764183003386,1.1482,3027.9,3027.8,3.51372805]
[1764183003587,1.1482,3027.9,3027.8,4.02832216]
[1764183004410,1.1482,3027.9,3027.1,3.30349179]
[1764183004411,7.75345552,3027.9,3027.1,3.30349179]
[1764183004704,0.4681,3027.1,3026.8,3.30381921]
[1764183004878,0.4797,3027.8,3026.9,0.211]
[1764183005077,0.4797,3027.7,3026.9,0.211]
[1764183005292,0.6665,3027.0,3026.9,0.211]
[1764183005489,0.4797,3027.7,3026.9,13.77202911]
[1764183005697,0.4797,3027.7,3027.3,0.72559411]
[1764183006010,0.4797,3027.7,3026.9,0.211]
[1764183006011,0.4681,3027.0,3026.9,33.69606117]
[1764183006210,0.4681,3027.0,3026.9,28.84536417]
[1764183006387,0.4814,3027.5,3026.9,38.88479435]
[1764183006577,0.4814,3027.7,3027.5,0.72559411]
[1764183006777,0.2004,3027.9,3027.7,12.063221]
[1764183006981,0.2004,3027.9,3027.8,0.72559411]
[1764183007215,0.2004,3027.9,3027.8,13.98679311]
[1764183007399,0.002,3027.9,3027.8,13.43578674]
[1764183007705,0.002,3027.9,3027.8,16.22654274]
[1764183007908,0.002,3027.9,3027.8,19.52927079]
[1764183008207,0.002,3028.3,3027.8,19.52927079]
[1764183008208,0.002,3028.3,3028.2,31.13109811]
[1764183008380,0.002,3028.3,3028.2,31.52039811]
[1764183008591,0.002,3028.3,3028.2,34.8700891]
[1764183008790,0.199,3028.9,3028.3,0.72559411]
[1764183009022,0.4814,3029.5,3028.5,39.55154133]
[1764183009218,0.1984,3030.0,3028.5,1.34209811]
[1764183009219,0.199,3028.9,3028.5,1.34209811]
[1764183009427,0.4991,3028.6,3028.5,24.66818811]
[1764183009589,0.002,3028.6,3028.5,27.14000692]
[1764183010021,0.002,3028.6,3028.5,30.44197158]
[1764183010531,0.9805,3028.6,3028.5,4.02755877]
[1764183010821,0.9805,3028.6,3028.5,9.03243477]
[1764183011421,0.002,3028.6,3028.5,9.03243477]
[1764183011621,0.4991,3028.6,3028.5,30.32112777]
[1764183011796,0.4991,3028.6,3028.5,30.40961876]
[1764183011997,0.4991,3028.6,3028.5,22.71655176]
[1764183011998,0.9805,3028.6,3028.5,22.71655176]
[1764183012609,0.9805,3028.6,3028.5,6.73485477]
[1764183012814,0.9805,3028.6,3028.5,6.30460877]
[1764183013015,0.9145,3028.6,3028.5,6.30460877]
[1764183013422,0.4331,3028.6,3028.5,6.30460877]
[1764183013602,0.4331,3028.6,3028.5,17.45553477]
[1764183013809,0.4331,3028.6,3028.5,17.63306394]
[1764183014007,0.9145,3028.6,3028.5,16.55970094]
[1764183014207,0.6879,3030.0,3029.3,1.13109811]
[1764183014407,0.6879,3030.0,3029.9,14.06362911]
[1764183014623,0.1984,3030.0,3028.6,0.05]
[1764183014800,0.1984,3030.0,3029.0,25.361926]
[1764183014995,0.1984,3030.0,3029.3,0.72559411]
[1764183015216,0.4895,3029.9,3029.3,0.211]
[1764183015531,0.4895,3029.9,3028.6,0.72559411]
[1764183015532,0.4996,3029.4,3029.1,0.211]
[1764183015822,0.6807,3028.7,3028.6,0.72559411]
[1764183016028,0.6807,3028.7,3028.6,6.71804185]
[1764183016215,0.6807,3028.7,3028.6,10.01989749]
[1764183016407,0.6807,3028.7,3028.6,7.68778749]
[1764183016808,0.6807,3028.7,3028.6,28.91990175]
[1764183017125,0.1811,3028.9,3028.8,0.72559411]
[1764183017323,0.4895,3029.4,3029.0,0.72559411]
[1764183017498,0.4895,3029.4,3029.0,0.211]
[1764183017699,0.4895,3029.4,3029.2,0.72559411]
[1764183018008,0.4996,3029.3,3029.2,18.31154411]
[1764183018214,0.4996,3029.3,3029.2,18.61388874]
[1764183018397,0.9891,3029.3,3029.2,13.10712674]
[1764183018598,0.9891,3029.3,3029.2,4.02679574]
[1764183018796,0.9891,3029.3,3029.1,0.211]
[1764183019026,0.8836,3029.2,3029.1,0.211]
[1764183020729,0.8836,3029.2,3029.1,4.23790473]
[1764183021319,0.002,3029.4,3029.2,16.43844211]
[1764183021498,0.002,3029.4,3029.2,0.72559411]
[1764183022198,0.4996,3029.3,3029.2,0.72559411]
[1764183022533,0.4996,3029.3,3029.2,3.34122611]
[1764183022730,0.9891,3029.3,3029.2,6.64242774]
[1764183023100,0.9891,3029.3,3029.2,0.93659411]
[1764183023432,0.9891,3029.3,3029.1,0.211]
[1764183023623,0.8836,3029.2,3029.1,0.211]
[1764183023817,0.8836,3029.2,3029.1,4.23789553]
[1764183024306,0.8836,3029.2,3029.1,0.93659411]
[1764183024629,0.8836,3029.2,3029.1,4.23790473]
[1764183024830,0.3941,3029.2,3029.1,10.58610273]
[1764183025029,0.3941,3029.2,3029.1,11.67156073]
[1764183025230,0.8836,3029.2,3029.1,7.14515373]
[1764183025635,0.8836,3029.2,3029.1,3.84384311]
[1764183025941,0.8836,3029.2,3029.1,4.23790473]
[1764183026103,0.8836,3029.2,3029.1,0.93659411]
[1764183026309,0.8836,3029.2,3029.1,0.72559411]
[1764183026610,0.8836,3029.2,3029.1,4.23790473]
[1764183026817,0.8836,3029.2,3029.1,10.43207473]
[1764183027017,0.3941,3029.2,3029.1,10.43207473]
[1764183027260,0.002,3029.4,3029.2,0.72559411]
[1764183027414,0.4915,3029.4,3029.2,0.72559411]
[1764183027613,0.4996,3029.3,3029.2,7.57115565]
[1764183027835,0.4915,3029.4,3029.2,7.57115565]
[1764183027836,0.002,3029.4,3029.3,16.15535511]
[1764183028042,0.002,3029.4,3029.3,11.90102811]
[1764183028213,0.5016,3029.4,3029.3,11.90102811]
[1764183028737,0.5016,3029.4,3029.3,15.20212077]
[1764183029037,0.9911,3029.4,3029.3,9.60921177]
[1764183029204,0.9911,3029.4,3029.3,6.30811911]
[1764183029411,0.9911,3029.4,3029.3,0.211]
[1764183029610,0.9911,3029.4,3029.1,0.211]
[1764183029837,0.4895,3029.3,3029.1,0.211]
[1764183030037,0.3941,3029.2,3029.1,0.211]
[1764183030536,0.8836,3029.2,3029.1,0.211]
[1764183030840,0.8836,3029.2,3029.1,4.23790473]
[1764183031336,0.8836,3029.2,3029.1,0.93659411]
[1764183031517,0.8836,3029.2,3029.1,4.23790473]
[1764183032035,0.8836,3029.2,3028.9,3.30150777]
[1764183032036,0.8836,3029.2,3028.1,3.599128]
[1764183032244,0.4895,3029.1,3028.3,7.517785]
[1764183032538,0.4895,3029.1,3027.5,4.704143]
[1764183032539,0.6807,3028.2,3027.5,4.704143]
[1764183032738,0.1811,3028.2,3027.4,3.30316443]
[1764183032940,0.4895,3028.1,3027.6,6.013589]
[1764183033242,0.4895,3028.1,3027.8,9.035915]
[1764183033413,0.4895,3028.1,3027.6,19.119532]
[1764183033609,0.4895,3028.1,3027.8,9.236135]
[1764183034034,0.4895,3028.1,3027.7,0.72559411]
[1764183034228,0.4895,3028.1,3027.8,2.002961]
[1764183034430,0.4895,3028.1,3027.8,7.304143]
[1764183034734,0.4895,3028.1,3027.8,4.554815]
[1764183034940,0.4895,3028.1,3027.9,5.060265]
[1764183035137,0.4895,3028.1,3028.0,0.211]
[1764183035330,0.4119,3027.7,3027.6,4.29721111]
[1764183035527,0.4895,3028.1,3027.8,0.72559411]
[1764183035732,0.4996,3027.9,3027.8,0.72559411]
[1764183035935,0.4996,3027.9,3026.9,16.830741]
[1764183036142,0.4996,3027.0,3026.9,2.767304]
[1764183036342,0.4996,3027.0,3026.9,3.49289811]
[1764183036638,0.4895,3027.4,3026.9,21.208291]
[1764183036843,0.4895,3027.4,3027.0,6.172378]
[1764183037038,0.4895,3027.4,3027.0,5.72797]
[1764183037342,0.4895,3027.4,3027.1,0.001]
[1764183037742,0.4996,3027.2,3027.1,0.001]
[1764183037912,0.92882938,3027.2,3027.1,0.001]
[1764183038244,1.41832938,3027.2,3027.1,0.001]
[1764183038418,0.9891,3027.2,3027.1,0.001]
[1764183041351,0.4895,3027.6,3027.1,0.001]
[1764183041949,0.4996,3027.2,3027.1,0.001]
[1764183042450,0.9891,3027.2,3027.1,0.001]
[1764183042829,0.4895,3027.9,3027.3,7.909127]
[1764183043027,0.6706,3028.2,3027.6,0.72559411]
[1764183043226,0.6706,3028.2,3027.7,3.30283713]
[1764183043461,0.4996,3027.8,3027.7,0.72559411]
[1764183043644,0.9891,3027.8,3027.6,0.72559411]
[1764183043819,0.4119,3027.7,3027.2,3.013321]
[1764183044018,0.4996,3027.3,3027.2,3.03771611]
[1764183044238,0.4996,3027.3,3027.2,3.24871611]
[1764183045156,0.9636,3027.3,3027.2,0.72559411]
[1764183045760,0.4996,3027.3,3027.2,0.72559411]
[1764183045957,0.9636,3027.3,3027.2,0.72559411]
[1764183046324,0.464,3027.7,3027.2,4.02897677]
[1764183047259,0.464,3027.7,3027.5,0.72559411]
[1764183047458,0.498,3027.6,3027.5,0.72559411]
[1764183047970,0.962,3027.6,3027.3,0.93659411]
[1764183048126,0.4974,3027.4,3027.3,4.23986765]
[1764183048624,0.464,3027.9,3027.3,3.51427354]
[1764183049029,0.464,3027.9,3027.3,6.81754708]
[1764183049230,0.464,3027.9,3027.5,3.30305532]
[1764183049873,0.498,3027.6,3027.5,15.23458143]
[1764183050036,0.498,3027.6,3027.5,7.17497243]
[1764183050966,0.962,3027.6,3027.5,7.17497243]
[1764183051433,0.498,3027.6,3027.5,7.17497243]
[1764183053329,0.464,3027.9,3027.5,4.02864943]
[1764183053845,0.498,3027.6,3027.5,0.72559411]
[1764183054240,0.962,3027.6,3027.5,4.02864943]
[1764183054459,0.962,3027.6,3027.5,6.34471843]
[1764183055454,0.498,3027.6,3027.5,6.34471843]
[1764183057472,0.466,3028.1,3027.5,9.64777375]
[1764183057652,0.466,3028.1,3027.5,7.33270475]
[1764183057968,0.466,3028.1,3027.5,4.02964943]
[1764183058147,0.86092857,3028.1,3027.5,4.02964943]
[1764183058554,0.498,3027.6,3027.5,0.72659411]
[1764183058956,0.962,3027.6,3027.5,0.001]
[1764183059158,0.962,3027.6,3027.5,0.212]
[1764183061242,4.26494622,3027.6,3027.5,0.001]
[1764183061554,1.12713597,3027.6,3027.5,0.001]
[1764183061757,0.498,3027.6,3027.5,0.001]
[1764183061950,0.962,3027.6,3027.5,0.001]
[1764183062646,0.002,3028.1,3027.5,0.001]
[1764183062647,0.002,3028.1,3028.0,30.77559411]
[1764183062840,0.002,3028.1,3028.0,40.88071677]
[1764183063548,0.002,3028.1,3028.0,44.18322667]
[1764183063753,0.002,3028.1,3028.0,47.53291766]
[1764183064069,0.002,3028.1,3028.0,27.520762]
[1764183064740,0.002,3028.1,3028.0,44.70445166]
[1764183065874,0.002,3028.1,3028.0,47.53291766]
[1764183066239,0.002,3028.1,3028.0,46.81659966]
[1764183066642,0.002,3029.4,3028.4,0.05]
[1764183066982,0.002,3029.4,3028.4,31.56039411]
[1764183067152,0.002,3029.4,3028.4,35.11973352]
[1764183067344,0.002,3029.4,3028.4,34.36006752]
[1764183067545,0.002,3029.4,3028.4,37.26071122]
[1764183067766,0.002,3029.4,3028.4,7.18370722]
[1764183067767,0.6351,3028.9,3028.4,7.18370722]
[1764183067972,0.6351,3028.9,3028.4,2.95770111]
[1764183068169,0.6351,3028.9,3028.4,6.25977481]
[1764183068369,0.4578,3028.5,3028.4,0.72559411]
[1764183068572,0.9098,3028.5,3028.4,6.55949111]
[1764183068772,0.9098,3028.5,3028.4,2.608039]
[1764183069093,0.9098,3028.5,3027.6,0.05]
[1764183069094,0.9098,3028.5,3028.3,0.211]
[1764183069269,0.452,3028.4,3028.2,0.211]
[1764183069652,0.002,3028.5,3028.2,0.93659411]
[1764183069983,0.002,3028.5,3028.4,9.75143411]
[1764183070146,0.002,3028.5,3028.4,9.14496011]
[1764183070347,0.002,3028.5,3028.4,8.46087011]
[1764183070348,0.4578,3028.5,3028.4,8.46087011]
[1764183070850,0.002,3028.5,3028.4,8.46087011]
[1764183071054,0.002,3028.5,3028.4,9.96462288]
[1764183071358,0.9098,3028.5,3028.4,2.87199911]
[1764183072272,0.9098,3028.5,3028.4,0.72559411]
[1764183072787,0.9098,3028.5,3028.4,0.93659411]
[1764183072986,0.9098,3028.5,3028.4,3.34096911]
[1764183073188,0.9098,3028.5,3028.4,0.93659411]
[1764183073872,0.4558,3028.5,3028.4,0.93659411]
[1764183074078,9.90131685,3029.9,3028.5,0.72559411]
[1764183074392,0.002,3029.2,3028.4,0.211]
[1764183074964,0.002,3029.2,3028.5,0.72559411]
[1764183075372,0.002,3029.2,3028.8,0.72559411]
[1764183075670,0.002,3029.2,3028.9,0.211]
[1764183075861,0.002,3029.2,3029.1,21.17018173]
[1764183076059,0.002,3029.2,3029.1,23.63844139]
[1764183076263,0.002,3029.2,3029.1,24.08964139]
[1764183076489,0.002,3029.2,3029.1,24.49514539]
[1764183076865,0.002,3029.2,3029.1,38.02516839]
[1764183077060,0.002,3029.2,3029.1,15.38880639]
[1764183077992,0.002,3029.2,3029.1,27.09496139]
[1764183078768,0.002,3029.2,3029.1,30.65898639]
[1764183078974,0.002,3029.2,3029.1,29.65790539]
[1764183079876,0.002,3029.2,3029.1,38.23616839]
[1764183080968,0.002,3029.2,3029.1,31.38616739]
[1764183081866,0.002,3029.2,3029.1,38.23616839]
[1764183082516,0.002,3029.2,3029.1,16.99097039]
[1764183082807,0.002,3029.2,3029.1,17.20197039]
[1764183082968,0.002,3029.2,3029.1,38.23616839]
[1764183083629,3.49463974,3031.1,3030.0,20.135824]
[1764183083630,0.2474,3031.1,3030.0,20.135824]
[1764183083931,0.2474,3031.1,3030.4,3.497202]
[1764183084085,0.052,3031.0,3030.5,0.211]
[1764183084622,0.052,3031.0,3030.0,4.802525]
[1764183084623,0.052,3030.6,3030.0,4.802525]
[1764183084930,0.052,3030.2,3029.7,0.72559411]
[1764183085088,0.052,3029.8,3029.5,8.025739]
[1764183085428,0.052,3030.7,3029.9,0.72559411]
[1764183085611,0.052,3030.7,3030.1,0.72559411]
[1764183085792,0.052,3030.7,3029.8,0.72559411]
[1764183085988,0.052,3030.7,3029.6,0.6622]
[1764183086189,0.052,3030.7,3029.8,0.72559411]
[1764183086518,0.1954,3031.1,3030.0,20.009158]
[1764183086832,0.1954,3031.1,3030.4,12.752079]
[1764183087034,0.1954,3031.1,3030.5,0.211]
[1764183087817,0.1954,3031.1,3030.6,0.211]
[1764183088184,3.29817627,3032.0,3030.6,0.211]
[1764183088185,0.052,3031.5,3031.0,4.241006]
[1764183088387,0.052,3031.7,3031.2,7.54865]
[1764183088790,0.052,3031.7,3031.1,1.57479411]
[1764183088791,0.052,3031.7,3031.3,17.812317]
[1764183089007,0.052,3031.7,3031.2,13.391859]
[1764183089198,0.052,3031.6,3031.2,13.391859]
[1764183089401,0.052,3031.6,3031.3,0.211]
[1764183089612,0.34025039,3031.5,3031.3,0.211]
[1764183089797,0.052,3031.4,3031.3,0.211]
[1764183090116,0.052,3031.4,3031.0,0.72559411]
[1764183090333,0.052,3031.4,3031.2,0.211]
[1764183090624,0.052,3031.4,3030.5,0.72559411]
[1764183090625,3.29891465,3031.3,3030.5,2.268977]
[1764183090789,3.29891465,3031.3,3030.6,0.211]
[1764183090986,0.33509146,3031.2,3030.6,0.211]
[1764183091187,0.002,3031.1,3030.6,0.211]
[1764183091693,0.054,3031.1,3030.6,0.211]
[1764183091889,0.052,3030.7,3030.0,0.72559411]
[1764183092101,0.052,3030.7,3030.4,2.32047]
[1764183092289,0.002,3031.1,3030.5,0.211]
[1764183092504,0.36560061,3031.1,3030.5,0.211]
[1764183092700,0.002,3031.1,3030.6,15.136358]
[1764183092899,0.002,3031.1,3030.6,3.76795311]
[1764183093114,0.002,3031.1,3030.6,8.800998]
[1764183093320,0.002,3031.1,3030.6,6.770188]
[1764183094443,0.002,3031.1,3030.6,7.221388]
[1764183094946,0.002,3031.1,3030.8,0.72559411]
[1764183095230,0.002,3031.1,3030.9,0.211]
[1764183095434,0.002,3031.1,3030.7,2.12246]
[1764183095620,0.054,3031.1,3030.7,0.211]
[1764183095795,0.002,3031.1,3030.7,0.211]
[1764183095995,0.002,3031.1,3030.8,0.72559411]
[1764183096636,0.052,3030.9,3030.8,0.72559411]
[1764183097496,0.052,3030.9,3030.3,0.72559411]
[1764183097693,0.054,3031.1,3030.2,0.4512]
[1764183097694,0.002,3031.1,3030.2,2.023058]
[1764183097893,0.002,3031.1,3029.8,3.30045441]
[1764183097894,0.052,3030.8,3030.3,0.211]
[1764183098331,0.054,3031.1,3030.3,0.211]
[1764183098511,0.052,3030.4,3030.3,0.211]
[1764183098710,0.052,3030.4,3029.7,3.30065416]
[1764183098932,0.104,3030.4,3029.9,2.449387]
[1764183099102,0.052,3030.0,3029.9,2.449387]
[1764183099410,3.29972192,3030.6,3029.9,2.449387]
[1764183099602,0.052,3030.4,3029.9,2.449387]
[1764183099826,0.052,3030.0,3029.1,0.237]
[1764183100135,0.38717219,3030.4,3029.4,0.72559411]
[1764183100336,0.38717219,3030.4,3029.5,10.959182]
[1764183100636,0.052,3030.4,3029.6,0.211]
[1764183100837,0.052,3030.4,3029.6,0.93659411]
[1764183101002,3.35191741,3030.4,3029.7,5.410805]
[1764183101201,3.35191741,3030.4,3029.8,0.72559411]
[1764183101403,3.35190754,3030.4,3029.7,0.72559411]
[1764183102042,0.052,3030.4,3029.7,0.72559411]
[1764183102241,4.01705588,3030.4,3029.8,0.211]
[1764183102672,0.71715914,3030.4,3029.8,0.19808]
[1764183102881,0.618504,3031.1,3030.0,0.05]
[1764183102882,0.002,3031.1,3030.0,0.05]
[1764183103044,0.052,3031.0,3030.0,0.05]
[1764183103250,0.052,3031.0,3030.3,0.72559411]
[1764183103572,0.052,3031.0,3030.1,0.211]
[1764183103878,0.38731418,3031.0,3030.3,2.99855611]
[1764183104077,0.38731418,3031.0,3030.2,0.72559411]
[1764183104078,0.38731418,3031.0,3030.2,2.339]
[1764183104655,0.33531418,3031.0,3030.1,0.398]
[1764183104864,0.052,3030.2,3029.7,3.30062443]
[1764183105075,0.052,3030.2,3029.9,2.416349]
[1764183105261,7.3394504,3030.9,3029.9,2.416349]
[1764183105462,0.052,3030.8,3029.9,2.416349]
[1764183105670,0.052,3030.8,3029.8,0.93659411]
[1764183105858,0.33531418,3030.7,3030.1,3.580986]
[1764183106058,0.33531418,3030.7,3030.0,0.72559411]
[1764183106263,0.33531418,3030.7,3029.6,0.72559411]
[1764183106264,0.052,3030.1,3029.6,0.72559411]
[1764183106474,0.052,3030.1,3029.3,0.4766]
[1764183106676,0.052,3030.1,3029.6,0.72559411]
[1764183106876,0.052,3029.7,3029.4,0.211]
[1764183107182,0.052,3030.1,3029.5,3.528097]
[1764183107481,3.29978551,3030.5,3029.5,0.4766]
[1764183107778,0.35627855,3030.4,3029.5,0.4766]
[1764183108153,0.35627855,3030.4,3029.7,0.72559411]
[1764183108553,0.35627855,3030.4,3029.6,12.204134]
[1764183108783,0.35627855,3030.4,3029.7,0.72559411]
[1764183108984,0.35627855,3030.4,3029.8,0.211]
[1764183109168,0.36560967,3030.3,3029.4,0.4766]
[1764183109369,0.052,3030.5,3029.4,0.4766]
[1764183109370,3.29994195,3030.4,3029.8,0.211]
[1764183110785,3.29994195,3030.4,3030.0,0.001]
[1764183111389,0.052,3030.1,3030.0,0.001]
[1764183112388,3.35194195,3030.4,3030.0,0.001]
[1764183112690,3.29984127,3030.5,3030.0,0.001]
[1764183112885,0.65995477,3030.4,3030.0,0.001]
[1764183113095,3.95985497,3030.4,3030.0,0.001]
[1764183113261,0.052,3030.1,3030.0,0.001]
[1764183115488,3.95986716,3030.4,3030.0,0.001]
[1764183115878,0.052,3030.1,3030.0,0.001]
[1764183116395,0.104,3030.1,3030.0,0.001]
[1764183117094,0.052,3030.1,3030.0,0.001]
[1764183117975,0.65995477,3030.4,3030.0,0.001]
[1764183118174,0.052,3030.1,3030.0,0.001]
[1764183118768,0.104,3030.1,3030.0,0.001]
[1764183118969,0.052,3030.1,3030.0,0.001]
[1764183119665,3.35222111,3030.1,3030.0,0.001]
[1764183120411,3.40422111,3030.1,3030.0,0.001]
[1764183120693,3.74464322,3030.1,3030.0,0.001]
[1764183121208,4.05135199,3030.1,3030.0,0.001]
[1764183122268,4.05130559,3030.1,3030.0,0.001]
[1764183122592,3.69264322,3030.1,3030.0,0.001]
[1764183122794,0.052,3030.1,3030.0,0.001]
[1764183123576,6.59991469,3030.4,3030.0,0.001]
[1764183123795,0.052,3030.1,3030.0,0.001]
[1764183124198,0.104,3030.1,3030.0,0.001]
[1764183125196,4.02072511,3030.1,3030.0,0.001]
[1764183125695,3.56322111,3030.1,3030.0,0.001]
[1764183127098,3.35222111,3030.1,3030.0,0.001]
[1764183127299,4.32781605,3030.1,3030.0,0.001]
[1764183127501,3.48,3029.9,3029.0,0.001]
[1764183127675,0.051,3029.1,3029.0,0.001]
[1764183128092,0.102,3029.1,3029.0,0.001]
[1764183128403,0.051,3029.1,3029.0,0.001]
[1764183129269,3.40331062,3029.1,3029.0,0.001]
[1764183129694,0.051,3029.1,3029.0,0.001]
[1764183129886,3.30111821,3029.3,3029.0,0.001]
[1764183130090,0.35121182,3029.2,3029.0,0.001]
[1764183131507,3.30118324,3029.3,3029.0,0.001]
[1764183132428,0.051,3029.1,3029.0,0.001]
[1764183132773,3.30118324,3029.3,3029.0,0.001]
[1764183132973,0.051,3029.5,3029.0,0.001]
[1764183132974,6.60191128,3029.5,3029.0,0.001]
[1764183133178,0.051,3029.1,3029.0,0.001]
[1764183133588,3.30128036,3029.2,3029.0,0.001]
[1764183134104,7.00681766,3029.7,3029.0,0.001]
[1764183134271,6.60131366,3029.7,3029.0,0.001]
[1764183134691,9.90197049,3029.7,3029.0,0.001]
[1764183134889,9.95297049,3029.7,3029.0,0.001]
[1764183135091,0.051,3029.1,3029.0,0.001]
[1764183135585,3.35231062,3029.1,3029.0,0.001]
[1764183135993,3.30131062,3029.1,3029.0,0.001]
[1764183136176,6.60248788,3029.2,3029.0,0.001]
[1764183136377,0.71124879,3029.1,3029.0,0.001]
[1764183136789,0.76224879,3029.1,3029.0,0.001]